fUST/lending_fUST_20250730
["ID","MTS","AMOUNT","RATE_DAILY","PERIOD"]
[376111104,1753866641074,-460.0,0.00019113,2]
[376111106,1753866641084,-460.0,0.00019113,2]
[376111108,1753866641093,-460.0,0.00019113,2]
[376111109,1753866641103,-460.0,0.00019113,2]
[376111110,1753866641113,-460.0,0.00019113,2]
[376111111,1753866641122,-460.0,0.00019113,2]
[376111112,1753866641131,-460.0,0.00019113,2]
[376111113,1753866641141,-162.80052599,0.00019113,2]
[376111114,1753866641150,-460.0,0.00019113,2]
[376111115,1753866641160,-460.0,0.00019113,2]
[376111116,1753866641169,-460.0,0.00019113,2]
[376111117,1753866641179,-460.0,0.00019113,2]
[376111118,1753866641188,-460.0,0.00019113,2]
[376111119,1753866641198,-460.0,0.00019113,2]
[376111120,1753866641207,-460.0,0.00019113,2]
[376111121,1753866641217,-479.76674032,0.00019113,2]
[376111122,1753866641227,-460.0,0.00019113,2]
[376111123,1753866641236,-460.0,0.00019113,2]
[376111124,1753866641245,-460.0,0.00019113,2]
[376111125,1753866641255,-460.0,0.00019113,2]
[376111126,1753866641264,-460.0,0.00019113,2]
[376111127,1753866641274,-460.0,0.00019113,2]
[376111128,1753866641284,-460.0,0.00019113,2]
[376111129,1753866641293,-460.0,0.00019113,2]
[376111130,1753866641305,-460.0,0.00019113,2]
[376111131,1753866641314,-460.0,0.00019113,2]
[376111132,1753866641324,-460.0,0.00019113,2]
[376111133,1753866641334,-460.0,0.00019113,2]
[376111134,1753866641343,-460.0,0.00019113,2]
[376111135,1753866641353,-460.0,0.00019113,2]
[376111136,1753866641363,-460.0,0.00019113,2]
[376111137,1753866641374,-460.0,0.00019113,2]
[376111138,1753866641383,-178.69539729,0.00019113,2]
[376111139,1753866641398,-281.30460271,0.00019113,2]
[376111140,1753866641407,-460.0,0.00019113,2]
[376111141,1753866641417,-460.0,0.00019113,2]
[376111142,1753866641426,-460.0,0.00019113,2]
[376111143,1753866641436,-460.0,0.00019113,2]
[376111144,1753866641445,-460.0,0.00019113,2]
[376111145,1753866641455,-460.0,0.00019113,2]
[376111146,1753866641465,-179.09413915,0.00019113,2]
[376111147,1753866641474,-468.28691985,0.00019113,2]
[376111148,1753866641485,-460.0,0.00019113,2]
[376111149,1753866641494,-460.0,0.00019113,2]
[376111150,1753866641504,-460.0,0.00019113,2]
[376111151,1753866641514,-460.0,0.00019113,2]
[376111152,1753866641523,-460.0,0.00019113,2]
[376111153,1753866641533,-460.0,0.00019113,2]
[376111154,1753866641543,-460.0,0.00019113,2]
[376111155,1753866641554,-460.0,0.00019113,2]
[376111156,1753866641564,-460.0,0.00019113,2]
[376111157,1753866641574,-460.0,0.00019113,2]
[376111158,1753866641584,-488.29669893,0.00019113,2]
[376111159,1753866641593,-460.0,0.00019113,2]
[376111160,1753866641603,-460.0,0.00019113,2]
[376111161,1753866641612,-460.0,0.00019113,2]
[376111162,1753866641622,-460.0,0.00019113,2]
[376111163,1753866641736,-460.0,0.00019113,2]
[376111164,1753866641747,-230.57373389,0.00019113,2]
[376111165,1753866641757,-460.0,0.00019113,2]
[376111166,1753866641766,-460.0,0.00019113,2]
[376111167,1753866641776,-460.0,0.00019113,2]
[376111168,1753866641785,-460.0,0.00019114,2]
[376111169,1753866641795,-460.0,0.00019114,2]
[376111170,1753866641808,-460.0,0.00019114,2]
[376111171,1753866641817,-373.27030834,0.00019114,2]
[376111172,1753866641829,-86.72969166,0.00019114,2]
[376111173,1753866641838,-460.0,0.00019114,2]
[376111174,1753866641847,-460.0,0.00019114,2]
[376111175,1753866641857,-460.0,0.00019114,2]
[376111176,1753866641867,-460.0,0.00019114,2]
[376111177,1753866641876,-460.0,0.00019114,2]
[376111178,1753866641886,-460.0,0.00019114,2]
[376111179,1753866641896,-460.0,0.00019114,2]
[376111180,1753866641905,-460.0,0.00019114,2]
[376111181,1753866641915,-460.0,0.00019114,2]
[376111182,1753866641924,-460.0,0.00019114,2]
[376111183,1753866641933,-460.0,0.00019114,2]
[376111184,1753866641943,-600.38,0.00019114,2]
[376111185,1753866641952,-343.60824993,0.00019114,2]
[376111186,1753866641964,-116.39175007,0.00019114,2]
[376111187,1753866641974,-460.0,0.00019115,2]
[376111188,1753866641983,-1149.08,0.00019115,2]
[376111189,1753866641992,-1233.14,0.00019115,2]
[376111190,1753866642002,-460.0,0.00019117,2]
[376111191,1753866642012,-460.0,0.00019117,2]
[376111192,1753866642021,-198.0,0.00019118,2]
[376111193,1753866642031,-444.0,0.00019118,2]
[376111194,1753866642040,-500.0,0.00019173,2]
[376111195,1753866642054,-500.0,0.00019173,2]
[376111196,1753866642063,-501.1736456,0.00019173,2]
[376111197,1753866642073,-0.91329668,0.00019173,2]
[376111198,1753866642085,-499.08670332,0.00019173,2]
[376111199,1753866642094,-386.6096194,0.00019173,2]
[376111200,1753866642106,-111.25216011,0.00019173,2]
[376111201,1753866642115,-360.29322698,0.00019173,2]
[376111202,1753866642127,-139.95177635,0.00019173,2]
[376111203,1753866642137,-460.11987953,0.00019173,2]
[376111204,1753866642146,-200.0,0.00019214,15]
[376111205,1753866642156,-200.0,0.00019214,15]
[376111206,1753866642166,-200.0,0.00019214,15]
[376111207,1753866642175,-200.0,0.00019214,15]
[376111208,1753866642184,-200.0,0.00019214,15]
[376111209,1753866642194,-200.0,0.00019214,15]
[376111210,1753866642203,-200.0,0.00019214,15]
[376111211,1753866642213,-200.0,0.00019214,15]
[376111212,1753866642223,-99.47423053,0.00019214,15]
[376111213,1753866642235,-100.52576947,0.00019214,15]
[376111214,1753866642244,-200.0,0.00019214,15]
[376111215,1753866642254,-200.0,0.00019214,15]
[376111216,1753866642263,-200.0,0.00019214,15]
[376111217,1753866642272,-200.0,0.00019214,15]
[376111218,1753866642281,-200.0,0.00019214,15]
[376111219,1753866642291,-200.0,0.00019214,15]
[376111220,1753866642304,-200.0,0.00019214,15]
[376111221,1753866642313,-1104.2528918,0.00019288,2]
[376111222,1753866642323,-460.0,0.00019385,2]
[376111223,1753866642332,-460.0,0.00019386,2]
[376111224,1753866642341,-460.0,0.00019386,2]
[376111225,1753866642350,-460.0,0.00019386,2]
[376111226,1753866642359,-853.71,0.00019386,2]
[376111228,1753866642368,-282.9,0.00019386,2]
[376111229,1753866642377,-1312.84,0.00019386,2]
[376111230,1753866642386,-668.25,0.00019386,2]
[376111231,1753866642395,-460.0,0.00019386,2]
[376111232,1753866642404,-460.0,0.00019386,2]
[376111233,1753866642413,-460.0,0.00019386,2]
[376111234,1753866642422,-460.0,0.00019386,2]
[376111235,1753866642431,-460.0,0.00019386,2]
[376111236,1753866642442,-460.0,0.00019386,2]
[376111237,1753866642451,-460.0,0.00019386,2]
[376111238,1753866642460,-460.0,0.00019386,2]
[376111239,1753866642469,-7092.50593747,0.00019387,2]
[376111240,1753866642478,-460.0,0.00019387,2]
[376111241,1753866642487,-460.0,0.00019387,2]
[376111242,1753866642496,-460.0,0.00019387,2]
[376111243,1753866642506,-460.0,0.00019387,2]
[376111244,1753866642514,-460.0,0.00019387,2]
[376111245,1753866642523,-460.0,0.00019387,2]
[376111246,1753866642533,-397.1,0.00019387,2]
[376111247,1753866642542,-235.52,0.00019387,2]
[376111248,1753866642554,-446.64656271,0.00019387,2]
[376111249,1753866642564,-460.0,0.00019387,2]
[376111250,1753866642573,-460.0,0.00019387,2]
[376111251,1753866642583,-460.0,0.00019387,2]
[376111253,1753866642592,-460.0,0.00019387,2]
[376111255,1753866642601,-460.0,0.00019387,2]
[376111257,1753866642610,-460.0,0.00019387,2]
[376111259,1753866642620,-460.0,0.00019387,2]
[376111261,1753866642629,-205.3792598,0.00019387,2]
[376111263,1753866642638,-460.0,0.00019387,2]
[376111264,1753866642648,-460.0,0.00019387,2]
[376111266,1753866642657,-460.0,0.00019387,2]
[376111268,1753866642667,-460.0,0.00019387,2]
[376111270,1753866642676,-460.0,0.00019387,2]
[376111272,1753866642685,-460.0,0.00019387,2]
[376111274,1753866642694,-491.45308181,0.00019387,2]
[376111276,1753866642703,-460.0,0.00019387,2]
[376111278,1753866642712,-460.0,0.00019387,2]
[376111280,1753866642723,-208.1435436,0.00019387,2]
[376111282,1753866642734,-460.0,0.00019387,2]
[376111284,1753866642743,-460.0,0.00019387,2]
[376111286,1753866642752,-460.0,0.00019387,2]
[376111288,1753866642761,-460.0,0.00019387,2]
[376111290,1753866642773,-460.0,0.00019387,2]
[376111292,1753866642782,-460.0,0.00019387,2]
[376111293,1753866642792,-460.0,0.00019387,2]
[376111295,1753866642805,-460.0,0.00019387,2]
[376111296,1753866642815,-460.0,0.00019387,2]
[376111298,1753866642824,-460.0,0.00019387,2]
[376111300,1753866642834,-468.27,0.00019387,2]
[376111301,1753866642843,-483.4,0.00019387,2]
[376111303,1753866642852,-460.0,0.00019387,2]
[376111305,1753866642861,-460.0,0.00019387,2]
[376111308,1753866642872,-460.0,0.00019387,2]
[376111309,1753866642881,-460.0,0.00019387,2]
[376111311,1753866642891,-460.0,0.00019387,2]
[376111313,1753866642900,-460.0,0.00019387,2]
[376111315,1753866642910,-450.97463968,0.00019387,2]
[376111317,1753866642919,-460.0,0.00019387,2]
[376111319,1753866642928,-460.0,0.00019387,2]
[376111321,1753866642937,-460.0,0.00019387,2]
[376111323,1753866642947,-460.0,0.00019387,2]
[376111325,1753866642956,-460.0,0.00019387,2]
[376111327,1753866642966,-460.0,0.00019387,2]
[376111329,1753866642976,-460.0,0.00019387,2]
[376111331,1753866642986,-503.29,0.00019387,2]
[376111333,1753866642995,-460.0,0.00019387,2]
[376111334,1753866643006,-460.0,0.00019387,2]
[376111337,1753866643016,-460.0,0.00019387,2]
[376111339,1753866643026,-460.0,0.00019387,2]
[376111341,1753866643035,-460.0,0.00019387,2]
[376111344,1753866643045,-460.0,0.00019387,2]
[376111346,1753866643055,-460.0,0.00019387,2]
[376111348,1753866643065,-460.0,0.00019387,2]
[376111350,1753866643074,-460.0,0.00019387,2]
[376111352,1753866643084,-460.0,0.00019387,2]
[376111353,1753866643093,-460.0,0.00019387,2]
[376111355,1753866643103,-460.0,0.00019387,2]
[376111357,1753866643114,-460.0,0.00019387,2]
[376111359,1753866643124,-468.97558817,0.00019387,2]
[376111361,1753866643134,-460.0,0.00019387,2]
[376111364,1753866643144,-474.02627055,0.00019388,2]
[376111366,1753866643153,-460.0,0.00019388,2]
[376111367,1753866643163,-404.02972199,0.00019388,2]
[376111370,1753866643172,-460.0,0.00019388,2]
[376111371,1753866643182,-460.0,0.00019388,2]
[376111373,1753866643191,-1149.08,0.00019389,2]
[376111375,1753866643201,-1233.14,0.00019389,2]
[376111377,1753866643211,-460.0,0.0001939,2]
[376111379,1753866643221,-460.0,0.0001939,2]
[376111382,1753866643231,-460.0,0.0001939,2]
[376111384,1753866643241,-500.0,0.0001939,2]
[376111385,1753866643251,-460.0,0.0001939,2]
[376111387,1753866643260,-462.98854127,0.0001939,2]
[376111389,1753866643271,-460.0,0.0001939,2]
[376111391,1753866643280,-460.0,0.0001939,2]
[376111393,1753866643289,-460.0,0.0001939,2]
[376111395,1753866643300,-460.0,0.0001939,2]
[376111397,1753866643311,-460.0,0.0001939,2]
[376111399,1753866643319,-573.11,0.0001939,2]
[376111401,1753866643329,-460.0,0.0001939,2]
[376111403,1753866643338,-460.0,0.0001939,2]
[376111405,1753866643348,-626.54,0.0001939,2]
[376111407,1753866643357,-580.14,0.00019391,2]
[376111408,1753866643367,-460.0,0.00019391,2]
[376111409,1753866643377,-460.0,0.00019391,2]
[376111410,1753866643386,-733.23,0.00019391,2]
[376111412,1753866643396,-460.0,0.00019391,2]
[376111414,1753866643406,-460.0,0.00019391,2]
[376111416,1753866643416,-461.92713244,0.00019391,2]
[376111418,1753866643425,-444.0,0.00019392,2]
[376111420,1753866643434,-229.95221134,0.00019423,2]
[376111422,1753866643444,-570.85699928,0.000195,2]
[376111424,1753866643455,-500.0,0.00019524,2]
[376111426,1753866643464,-293.0,0.00019569,2]
[376111428,1753866643474,-853.71,0.0001966,2]
[376111430,1753866643483,-1312.84,0.0001966,2]
[376111432,1753866643493,-668.25,0.0001966,2]
[376111434,1753866643502,-261.56,0.0001966,2]
[376111436,1753866643513,-337.16,0.0001966,2]
[376111438,1753866643523,-284.24,0.0001966,2]
[376111440,1753866643533,-460.0,0.0001966,2]
[376111442,1753866643543,-460.0,0.0001966,2]
[376111443,1753866643557,-460.0,0.0001966,2]
[376111444,1753866643567,-413.28,0.00019661,2]
[376111445,1753866643577,-460.0,0.00019661,2]
[376111446,1753866643588,-460.0,0.00019661,2]
[376111447,1753866643599,-290.88984903,0.00019661,2]
[376111448,1753866643610,-460.0,0.00019661,2]
[376111449,1753866643620,-338.6,0.00019661,2]
[376111450,1753866643630,-460.0,0.00019661,2]
[376111451,1753866643640,-460.0,0.00019661,2]
[376111452,1753866643650,-460.0,0.00019661,2]
[376111453,1753866643659,-460.0,0.00019661,2]
[376111454,1753866643669,-460.0,0.00019661,2]
[376111455,1753866643680,-460.0,0.00019661,2]
[376111456,1753866643689,-370.96,0.00019661,2]
[376111457,1753866643698,-460.0,0.00019661,2]
[376111458,1753866643708,-460.0,0.00019661,2]
[376111459,1753866643719,-460.0,0.00019661,2]
[376111460,1753866643730,-493.31,0.00019661,2]
[376111461,1753866643741,-460.0,0.00019661,2]
[376111462,1753866643751,-460.0,0.00019661,2]
[376111463,1753866643761,-460.0,0.00019661,2]
[376111464,1753866643771,-460.0,0.00019661,2]
[376111465,1753866643781,-474.25,0.00019661,2]
[376111466,1753866643790,-460.0,0.00019661,2]
[376111467,1753866643802,-460.0,0.00019661,2]
[376111468,1753866643811,-460.0,0.00019661,2]
[376111469,1753866643821,-460.0,0.00019661,2]
[376111470,1753866643830,-518.77457289,0.00019661,2]
[376111471,1753866643840,-460.0,0.00019661,2]
[376111472,1753866643850,-460.0,0.00019661,2]
[376111473,1753866643860,-460.0,0.00019661,2]
[376111474,1753866643869,-460.0,0.00019661,2]
[376111475,1753866643879,-460.0,0.00019661,2]
[376111476,1753866643888,-460.0,0.00019661,2]
[376111477,1753866643897,-459.74,0.00019661,2]
[376111478,1753866643907,-176.84,0.00019661,2]
[376111479,1753866643915,-460.0,0.00019662,2]
[376111480,1753866643924,-460.0,0.00019662,2]
[376111481,1753866643933,-1233.14,0.00019663,2]
[376111482,1753866643943,-460.0,0.00019664,2]
[376111483,1753866643952,-460.0,0.00019664,2]
[376111484,1753866643962,-460.0,0.00019664,2]
[376111485,1753866643972,-460.0,0.00019664,2]
[376111486,1753866643982,-460.0,0.00019664,2]
[376111487,1753866643991,-460.0,0.00019664,2]
[376111488,1753866644001,-460.0,0.00019664,2]
[376111489,1753866644010,-626.54,0.00019664,2]
[376111490,1753866644019,-460.0,0.00019665,2]
[376111491,1753866644029,-733.23,0.00019665,2]
[376111492,1753866644039,-460.0,0.00019665,2]
[376111493,1753866644049,-444.0,0.00019666,2]
[376111494,1753866644059,-205.782756,0.00019721,2]
[376111495,1753866644068,-344.0,0.00019798,2]
[376111496,1753866644078,-1129.71645672,0.000199,2]
[376111497,1753866644087,-853.71,0.00019934,2]
[376111498,1753866644097,-1312.84,0.00019934,2]
[376111499,1753866644106,-668.25,0.00019934,2]
[376111501,1753866644116,-460.0,0.00019934,2]
[376111503,1753866644125,-460.0,0.00019934,2]
[376111505,1753866644134,-357.62,0.00019934,2]
[376111506,1753866644144,-460.0,0.00019935,2]
[376111508,1753866644154,-460.0,0.00019935,2]
[376111510,1753866644164,-1149.08,0.00019935,2]
[376111511,1753866644174,-460.0,0.00019935,2]
[376111512,1753866644183,-460.0,0.00019935,2]
[376111513,1753866644192,-460.0,0.00019935,2]
[376111514,1753866644202,-460.0,0.00019935,2]
[376111515,1753866644211,-355.17,0.00019935,2]
[376111516,1753866644221,-460.0,0.00019935,2]
[376111517,1753866644230,-460.0,0.00019935,2]
[376111518,1753866644240,-460.0,0.00019935,2]
[376111519,1753866644249,-460.0,0.00019935,2]
[376111520,1753866644258,-462.0,0.00019935,2]
[376111521,1753866644267,-460.0,0.00019935,2]
[376111522,1753866644277,-460.0,0.00019935,2]
[376111523,1753866644286,-436.31,0.00019935,2]
[376111524,1753866644295,-460.0,0.00019935,2]
[376111525,1753866644306,-460.0,0.00019935,2]
[376111526,1753866644315,-460.0,0.00019935,2]
[376111527,1753866644324,-460.0,0.00019936,2]
[376111528,1753866644334,-460.0,0.00019936,2]
[376111529,1753866644343,-1233.14,0.00019937,2]
[376111530,1753866644352,-427.58,0.00019938,2]
[376111531,1753866644362,-327.22,0.00019938,2]
[376111532,1753866644371,-460.0,0.00019938,2]
[376111533,1753866644381,-460.0,0.00019938,2]
[376111534,1753866644391,-372.0,0.00019938,2]
[376111535,1753866644400,-626.54,0.00019938,2]
[376111536,1753866644410,-460.0,0.00019939,2]
[376111537,1753866644419,-733.23,0.00019939,2]
[376111538,1753866644428,-188.68,0.00019939,2]
[376111539,1753866644438,-444.0,0.0001994,2]
[376111540,1753866644448,-1000.0,0.00020071,2]
[376111541,1753866644458,-526.76118213,0.00020082,2]
[376111542,1753866644467,-160.0,0.00020082,2]
[376111543,1753866644477,-160.0,0.00020083,2]
[376111544,1753866644487,-160.0,0.00020083,2]
[376111545,1753866644496,-216.14611358,0.00020083,2]
[376111546,1753866644507,-160.0,0.00020083,2]
[376111547,1753866644517,-160.0,0.00020083,2]
[376111548,1753866644526,-1502.65670233,0.00020083,2]
[376111549,1753866644542,-641.00857584,0.00020083,2]
[376111562,1753866644741,-460.0,0.00018837,2]
[376111564,1753866644751,-460.0,0.00019111,2]
[376111566,1753866644762,-418.97169526,0.00019113,2]
[376111569,1753866644774,-41.02830474,0.00019113,2]
[376111571,1753866644784,-460.0,0.00019385,2]
[376111573,1753866644793,-460.0,0.0001939,2]
[376111575,1753866644806,-2695.9716954,0.00020083,2]
[376111577,1753866644817,-1927.20946137,0.00020083,2]
[376111579,1753866644830,-2440.98375839,0.00020083,2]
[376111581,1753866644842,-1081.91890923,0.00020083,2]
[376111584,1753866644853,-2349.82866134,0.00020083,2]
[376111586,1753866644863,-841.2246943,0.00020083,2]
[376111588,1753866644873,-160.0,0.00020083,2]
[376111590,1753866644882,-231.43925844,0.00020083,2]
[376111592,1753866644891,-160.0,0.00020083,2]
[376111594,1753866644900,-214.95885286,0.00020083,2]
[376111596,1753866644911,-1129.71645649,0.00020141,2]
[376111598,1753866644919,-460.0,0.00020158,2]
[376111599,1753866644928,-460.0,0.00020158,2]
[376111601,1753866644937,-342.51299228,0.00020158,2]
[376111604,1753866644953,-119.34595423,0.00020158,2]
[376111606,1753866644962,-460.0,0.00020158,2]
[376111608,1753866644972,-460.0,0.00020158,2]
[376111610,1753866644981,-460.0,0.00020158,2]
[376111612,1753866644990,-460.0,0.00020158,2]
[376111614,1753866644999,-286.29610849,0.00020158,2]
[376111616,1753866645009,-460.0,0.00020158,2]
[376111618,1753866645018,-460.0,0.00020158,2]
[376111620,1753866645027,-460.0,0.00020158,2]
[376111622,1753866645036,-69.30793728,0.00020158,2]
[376111629,1753866645093,-199.48096574,0.00018844,2]
[376111630,1753866645103,-391.5619667,0.00020158,2]
[376111632,1753866645111,-500.36129159,0.00020158,2]
[376111634,1753866645121,-460.0,0.00020158,2]
[376111635,1753866645130,-487.33,0.00020158,2]
[376111637,1753866645139,-460.0,0.00020158,2]
[376111639,1753866645149,-460.0,0.00020158,2]
[376111641,1753866645159,-460.0,0.00020158,2]
[376111643,1753866645168,-460.0,0.00020158,2]
[376111644,1753866645177,-460.0,0.00020158,2]
[376111646,1753866645187,-467.52181597,0.00020158,2]
[376111648,1753866645196,-460.0,0.00020158,2]
[376111650,1753866645206,-460.0,0.00020158,2]
[376111652,1753866645214,-460.0,0.00020158,2]
[376111654,1753866645223,-1149.08,0.00020177,2]
[376111656,1753866645233,-196.623991,0.00020187,2]
[376111657,1753866645242,-323.15423214,0.00020189,2]
[376111658,1753866645251,-853.71,0.00020208,2]
[376111660,1753866645260,-1312.84,0.00020208,2]
[376111662,1753866645270,-668.25,0.00020208,2]
[376111665,1753866645279,-460.0,0.00020208,2]
[376111667,1753866645288,-460.0,0.00020208,2]
[376111669,1753866645299,-599.36,0.00020209,2]
[376111670,1753866645308,-460.0,0.00020209,2]
[376111672,1753866645318,-460.0,0.00020209,2]
[376111674,1753866645327,-460.0,0.00020209,2]
[376111676,1753866645336,-460.0,0.00020209,2]
[376111677,1753866645345,-460.0,0.00020209,2]
[376111679,1753866645354,-337.22,0.00020209,2]
[376111681,1753866645363,-460.0,0.00020209,2]
[376111682,1753866645373,-598.97,0.00020209,2]
[376111684,1753866645382,-460.0,0.00020209,2]
[376111686,1753866645391,-460.0,0.00020209,2]
[376111688,1753866645400,-460.0,0.00020209,2]
[376111689,1753866645409,-460.0,0.00020209,2]
[376111691,1753866645419,-460.0,0.00020209,2]
[376111693,1753866645429,-460.0,0.00020209,2]
[376111695,1753866645438,-500.0,0.0002021,2]
[376111696,1753866645447,-500.0,0.0002021,2]
[376111698,1753866645456,-460.0,0.0002021,2]
[376111700,1753866645466,-460.0,0.0002021,2]
[376111701,1753866645475,-1233.14,0.00020211,2]
[376111703,1753866645485,-460.0,0.00020212,2]
[376111705,1753866645494,-460.0,0.00020212,2]
[376111707,1753866645504,-626.54,0.00020212,2]
[376111708,1753866645514,-460.0,0.00020213,2]
[376111710,1753866645523,-733.23,0.00020213,2]
[376111711,1753866645533,-444.0,0.00020214,2]
[376111713,1753866645543,-918.94253686,0.00020214,2]
[376111714,1753866645558,-230.13746314,0.00020214,2]
[376111716,1753866645567,-160.0,0.00020248,2]
[376111718,1753866645576,-232.49438452,0.00020269,2]
[376111720,1753866645586,-152.21019165,0.00020279,2]
[376111722,1753866645596,-1104.25289179,0.00020291,2]
[376111724,1753866645606,-252.30438032,0.00020383,3]
[376111742,1753866645831,-460.0,0.00018837,2]
[376111744,1753866645841,-460.0,0.00018839,2]
[376111746,1753866645851,-461.03211843,0.00019113,2]
[376111748,1753866645860,-460.0,0.00019113,2]
[376111750,1753866645869,-460.0,0.00019113,2]
[376111752,1753866645879,-460.0,0.0001939,2]
[376111753,1753866645889,-460.0,0.00019664,2]
[376111755,1753866645899,-460.0,0.00019938,2]
[376111757,1753866645908,-321.1,0.00020212,2]
[376111759,1753866645917,-877.41207617,0.00020383,3]
[376111761,1753866645926,-8819.42087585,0.00020387,2]
[376111762,1753866645936,-460.0,0.00020432,2]
[376111764,1753866645946,-487.33,0.00020432,2]
[376111766,1753866645956,-460.0,0.00020432,2]
[376111768,1753866645965,-460.0,0.00020432,2]
[376111770,1753866645975,-460.0,0.00020432,2]
[376111772,1753866645984,-460.0,0.00020432,2]
[376111773,1753866645993,-460.0,0.00020432,2]
[376111775,1753866646003,-460.0,0.00020432,2]
[376111777,1753866646013,-556.2,0.00020432,2]
[376111779,1753866646022,-500.0,0.0002046,2]
[376111781,1753866646032,-500.0,0.0002046,2]
[376111782,1753866646041,-853.71,0.00020482,2]
[376111784,1753866646052,-1312.84,0.00020482,2]
[376111786,1753866646062,-668.25,0.00020482,2]
[376111788,1753866646072,-460.0,0.00020482,2]
[376111790,1753866646081,-460.0,0.00020482,2]
[376111791,1753866646091,-245.86,0.00020483,2]
[376111793,1753866646101,-313.23,0.00020483,2]
[376111795,1753866646111,-561.28,0.00020483,2]
[376111797,1753866646121,-460.0,0.00020483,2]
[376111798,1753866646130,-460.0,0.00020483,2]
[376111800,1753866646140,-180.26,0.00020483,2]
[376111802,1753866646150,-182.74,0.00020483,2]
[376111804,1753866646160,-460.0,0.00020483,2]
[376111806,1753866646172,-460.0,0.00020483,2]
[376111808,1753866646182,-386.14,0.00020483,2]
[376111809,1753866646191,-233.44,0.00020484,2]
[376111811,1753866646201,-460.0,0.00020484,2]
[376111813,1753866646210,-1233.14,0.00020485,2]
[376111815,1753866646218,-179.93,0.00020486,2]
[376111817,1753866646227,-626.54,0.00020486,2]
[376111818,1753866646237,-358.27640224,0.00020487,2]
[376111820,1753866646246,-733.23,0.00020487,2]
[376111821,1753866646256,-444.0,0.00020488,2]
[376111823,1753866646266,-420.0,0.00020536,2]
[376111825,1753866646275,-500.0,0.00020548,2]
[376111827,1753866646284,-509.3110749,0.00020619,2]
[376111829,1753866646293,-1129.71645649,0.00020624,3]
[376111830,1753866646306,-250.0,0.00020685,2]
[376111832,1753866646316,-460.0,0.00020706,2]
[376111834,1753866646325,-487.33,0.00020706,2]
[376111836,1753866646334,-335.51,0.00020706,2]
[376111837,1753866646344,-460.0,0.00020706,2]
[376111839,1753866646354,-460.0,0.00020706,2]
[376111841,1753866646365,-853.71,0.00020756,2]
[376111843,1753866646374,-1312.84,0.00020756,2]
[376111845,1753866646384,-668.25,0.00020756,2]
[376111846,1753866646394,-460.0,0.00020756,2]
[376111848,1753866646403,-460.0,0.00020756,2]
[376111850,1753866646412,-460.0,0.00020757,2]
[376111851,1753866646422,-460.0,0.00020757,2]
[376111853,1753866646431,-460.0,0.00020757,2]
[376111855,1753866646439,-460.0,0.00020757,2]
[376111856,1753866646449,-397.36,0.00020757,2]
[376111857,1753866646458,-1000.0,0.00020757,2]
[376111859,1753866646467,-1000.0,0.00020757,2]
[376111861,1753866646476,-460.0,0.00020758,2]
[376111863,1753866646486,-1233.14,0.00020759,2]